fUSD/lending_fUSD_20260630
["ID","MTS","AMOUNT","RATE_DAILY","PERIOD"]
[426717491,1782759604000,-105.28678057,0.00012331,2]
[426717486,1782759604000,-500.0,0.00012135,2]
[426717488,1782759604000,-250.0,0.00012159,2]
[426717492,1782759655000,-1182.93,0.00012258,2]
[426717493,1782759655000,-1558.07,0.00012331,2]
[426717494,1782759662000,750.56,0.00037221,60]
[426717497,1782759699000,150.0,0.00011961,2]
[426717500,1782759732000,150.0,0.00011757,2]
[426717503,1782759743000,162.71869632,0.00037221,120]
[426717502,1782759743000,162.71869632,0.00037221,120]
[426717505,1782759744000,162.71869633,0.00037221,120]
[426717504,1782759744000,162.71869632,0.00037221,120]
[426717506,1782759752000,678.8609321,0.00012581,3]
[426717509,1782759771000,1572384.66606354,0.00037221,30]
[426717510,1782759811000,166.05,0.00011651,2]
[426717511,1782759822000,166.66,0.00012001,2]
[426717512,1782759856000,613.09,0.00011626,2]
[426717526,1782759946000,-94221.30255497,0.00012482,2]
[426717513,1782759946000,-214.57085643,0.00012331,2]
[426717514,1782759946000,-522.23852072,0.00012382,2]
[426717515,1782759946000,-2500.0,0.00012382,2]
[426717517,1782759946000,-166.66,0.00012394,2]
[426717518,1782759946000,-166.66,0.00012397,2]
[426717516,1782759946000,-214.57085643,0.00012383,2]
[426717525,1782759946000,-547.75221565,0.00012481,2]
[426717521,1782759946000,-150.0,0.00012481,2]
[426717520,1782759946000,-160.0,0.00012462,2]
[426717523,1782759946000,-282.07760609,0.00012481,2]
[426717524,1782759946000,-521.56354997,0.00012481,2]
[426717522,1782759946000,-500.0,0.00012481,2]
[426717519,1782759946000,-182.60383974,0.0001242,2]
[426717527,1782759978000,778.5334711,0.00011682,2]
[426717528,1782759979000,561.80942963,0.00011682,2]
[426717530,1782760000000,323.1,0.0001159,2]
[426717531,1782760012000,3478.05,0.00011691,2]
[426717532,1782760027000,181.65,0.00011657,2]
[426717533,1782760055000,150.0,0.0001164,2]
[426717538,1782760171000,-323.1,0.000122,2]
[426717537,1782760171000,-1163.93708669,0.000122,2]
[426717534,1782760171000,-3307.966964,0.00012016,2]
[426717536,1782760171000,-69.47291331,0.000122,2]
[426717535,1782760171000,-163.87,0.00012138,2]
[426717539,1782760171000,-138.82785152,0.000122,2]
[426717542,1782760182000,166.66,0.00011531,2]
[426717541,1782760182000,166.66,0.00011298,2]
[426717540,1782760182000,166.66,0.00011065,2]
[426717543,1782760183000,166.66,0.00011764,2]
[426717544,1782760183000,166.66,0.00011996,2]
[426717545,1782760189000,263.54885701,0.00013864,10]
[426717547,1782760196000,-166.66,0.00012229,2]
[426717546,1782760196000,-29.61725648,0.000122,2]
[426717548,1782760196000,-65.76204674,0.00012259,2]
[426717556,1782760231000,-12035.96185839,0.00012382,2]
[426717557,1782760231000,-531.73649619,0.00012382,2]
[426717555,1782760231000,-103132.61297198,0.00012382,2]
[426717551,1782760231000,-2699.22182197,0.00012382,2]
[426717552,1782760231000,-2500.0,0.00012382,2]
[426717553,1782760231000,-41149.87984275,0.00012382,2]
[426717554,1782760231000,-14859.44965725,0.00012382,2]
[426717550,1782760231000,-167.16,0.00012329,2]
[426717585,1782760237000,-705.63099305,0.00012382,2]
[426717623,1782760238000,-315.81,0.0001293,2]
[426717634,1782760238000,-5436.74336436,0.0001305,2]
[426717620,1782760238000,-323.1,0.0001281,2]
[426717632,1782760238000,-150.0,0.00013,2]
[426717617,1782760238000,-4587.04656632,0.00012778,2]
[426717619,1782760238000,-166.66,0.00012793,2]
[426717615,1782760238000,-150.0,0.00012752,2]
[426717613,1782760238000,-151.0,0.00012684,2]
[426717621,1782760238000,-1182.93,0.00012871,2]
[426717618,1782760238000,-315.81,0.0001279,2]
[426717627,1782760238000,-500.0,0.00012987,2]
[426717625,1782760238000,-454.11,0.00012948,2]
[426717622,1782760238000,-150.0,0.00012876,2]
[426717630,1782760238000,-7028.85048624,0.00013,2]
[426717628,1782760238000,-350.94966317,0.00013,2]
[426717614,1782760238000,-351.58,0.00012742,2]
[426717636,1782760238000,-315.81,0.0001307,2]
[426717642,1782760238000,-181.65,0.00013114,2]
[426717649,1782760238000,-166.66,0.0001319,2]
[426717639,1782760238000,-166.05,0.00013108,2]
[426717646,1782760238000,-1182.93,0.00013178,2]
[426717657,1782760238000,-150.0,0.00013248,2]
[426717644,1782760238000,-150.0,0.00013124,2]
[426717624,1782760238000,-2699.22182193,0.00012942,2]
[426717616,1782760238000,-160.0,0.00012757,2]
[426717609,1782760238000,-150.0,0.00012629,2]
[426717610,1782760238000,-315.81,0.0001265,2]
[426717586,1782760238000,-2663.08614235,0.00012382,2]
[426717588,1782760238000,-405.71756694,0.00012382,2]
[426717587,1782760238000,-175.15082395,0.00012382,2]
[426717589,1782760238000,-6041.05069045,0.00012382,2]
[426717591,1782760238000,-201401.4543516,0.00012464,2]
[426717592,1782760238000,-181.46,0.00012477,2]
[426717590,1782760238000,-1374309.0524567,0.00012382,2]
[426717593,1782760238000,-150.0,0.00012481,2]
[426717605,1782760238000,-1182.93,0.00012565,2]
[426717604,1782760238000,-182.60383973,0.00012519,2]
[426717651,1782760238000,-315.81,0.00013209,2]
[426717612,1782760238000,-892.0,0.00012684,2]
[426717596,1782760238000,-33347.6671,0.00012482,2]
[426717597,1782760238000,-214.57085643,0.00012482,2]
[426717599,1782760238000,-1240.9115205,0.00012483,2]
[426717602,1782760238000,-173.84725224,0.00012519,2]
[426717600,1782760238000,-150.0,0.00012505,2]
[426717601,1782760238000,-315.81,0.0001251,2]
[426717598,1782760238000,-460.52560564,0.00012483,2]
[426717603,1782760238000,-182.60383974,0.00012519,2]
[426717606,1782760238000,-2416.47069935,0.00012572,2]
[426717611,1782760238000,-2699.22182193,0.00012662,2]
[426717607,1782760238000,-199.40771083,0.00012583,2]
[426717608,1782760238000,-2000.0,0.00012583,2]
[426717595,1782760238000,-383.42655095,0.00012481,2]
[426717659,1782760238000,-500.0,0.0001329,2]
[426717594,1782760238000,-547.45432427,0.00012481,2]
[426717655,1782760238000,-216.58458871,0.00013247,2]
[426717713,1782760238000,-500.0,0.00013698,2]
[426717731,1782760238000,-837.65,0.00013698,2]
[426717729,1782760238000,-500.0,0.00013698,2]
[426717734,1782760238000,-837.65,0.00013698,2]
[426717736,1782760238000,-837.65,0.00013698,2]
[426717721,1782760238000,-500.0,0.00013698,2]
[426717715,1782760238000,-500.0,0.00013698,2]
[426717719,1782760238000,-500.0,0.00013698,2]
[426717723,1782760238000,-500.0,0.00013698,2]
[426717738,1782760238000,-837.65,0.00013698,2]
[426717717,1782760238000,-500.0,0.00013698,2]
[426717727,1782760238000,-500.0,0.00013698,2]
[426717744,1782760238000,-718.64,0.00013698,2]
[426717759,1782760238000,-300.0,0.0001373,2]
[426717748,1782760238000,-718.64,0.00013698,2]
[426717750,1782760238000,-718.64,0.00013698,2]
[426717740,1782760238000,-837.65,0.00013698,2]
[426717753,1782760238000,-299.99,0.00013699,2]
[426717757,1782760238000,-300.0,0.0001373,2]
[426717755,1782760238000,-200.0,0.00013699,2]
[426717763,1782760238000,-300.0,0.0001373,2]
[426717761,1782760238000,-300.0,0.0001373,2]
[426717765,1782760238000,-300.0,0.0001373,2]
[426717653,1782760238000,-2699.22182193,0.00013221,2]
[426717742,1782760238000,-718.64,0.00013698,2]
[426717725,1782760238000,-500.0,0.00013698,2]
[426717746,1782760238000,-718.64,0.00013698,2]
[426717711,1782760238000,-500.0,0.00013698,2]
[426717709,1782760238000,-500.0,0.00013698,2]
[426717661,1782760238000,-150.0,0.00013371,2]
[426717663,1782760238000,-250.0,0.0001342,2]
[426717665,1782760238000,-1182.93,0.00013484,2]
[426717672,1782760238000,-150.0,0.00013488,2]
[426717685,1782760238000,-150.0,0.00013488,2]
[426717670,1782760238000,-150.0,0.00013488,2]
[426717679,1782760238000,-150.84643431,0.00013488,2]
[426717675,1782760238000,-150.0,0.00013488,2]
[426717669,1782760238000,-150.0,0.00013488,2]
[426717681,1782760238000,-150.0,0.00013488,2]
[426717677,1782760238000,-150.0,0.00013488,2]
[426717667,1782760238000,-250.0,0.00013485,2]
[426717703,1782760238000,-500.0,0.00013698,2]
[426717687,1782760238000,-275.0,0.00013495,2]
[426717705,1782760238000,-500.0,0.00013698,2]
[426717707,1782760238000,-500.0,0.00013698,2]
[426717701,1782760238000,-500.0,0.00013698,2]
[426717696,1782760238000,-255.0,0.0001358,2]
[426717699,1782760238000,-1240.9115205,0.00013692,2]
[426717691,1782760238000,-250.0,0.00013564,2]
[426717697,1782760238000,-166.66,0.00013586,2]
[426717689,1782760238000,-2699.22182193,0.00013501,2]
[426717683,1782760238000,-150.0,0.00013488,2]
[426717693,1782760238000,-333.7764086,0.00013564,2]
[426717848,1782760239000,-49747.0,0.00014959,2]
[426717846,1782760239000,-90009.0,0.00014959,2]
[426717842,1782760239000,-2089.33419864,0.000149,2]
[426717844,1782760239000,-1240.9115205,0.000149,2]
[426717840,1782760239000,-14369.94854325,0.000149,2]
[426717822,1782760239000,-433.0,0.00014778,2]
[426717834,1782760239000,-2699.22182193,0.000149,2]
[426717836,1782760239000,-2159.99827316,0.000149,2]
[426717832,1782760239000,-993.97,0.000149,2]
[426717830,1782760239000,-2849.02,0.000149,2]
[426717857,1782760239000,-150.0,0.00014986,2]
[426717838,1782760239000,-1517.13213561,0.000149,2]
[426717850,1782760239000,-296.29301606,0.00014986,2]
[426717875,1782760239000,-500.0,0.00014999,2]
[426717860,1782760239000,-238.810634,0.00014986,2]
[426717851,1782760239000,-150.0,0.00014986,2]
[426717853,1782760239000,-150.00000002,0.00014986,2]
[426717861,1782760239000,-215.67446722,0.00014986,2]
[426717869,1782760239000,-500.0,0.00014999,2]
[426717867,1782760239000,-500.0,0.00014999,2]
[426717863,1782760239000,-2416.47069935,0.0001499,2]
[426717865,1782760239000,-2416.47069935,0.0001499,2]
[426717871,1782760239000,-500.0,0.00014999,2]
[426717873,1782760239000,-500.0,0.00014999,2]
[426717877,1782760239000,-500.0,0.00014999,2]
[426717827,1782760239000,-233588.2090154,0.00014863,2]
[426717855,1782760239000,-150.0,0.00014986,2]
[426717818,1782760239000,-460.52560562,0.00014686,2]
[426717770,1782760239000,-600.0,0.0001373,2]
[426717828,1782760239000,-670.63572893,0.000149,2]
[426717768,1782760239000,-600.0,0.0001373,2]
[426717773,1782760239000,-600.0,0.0001373,2]
[426717883,1782760239000,-500.0,0.00014999,2]
[426717784,1782760239000,-166.66,0.00013982,2]
[426717786,1782760239000,-2699.22182193,0.00014061,2]
[426717780,1782760239000,-2699.22182193,0.00013781,2]
[426717782,1782760239000,-150.0,0.00013787,2]
[426717776,1782760239000,-600.0,0.0001373,2]
[426717778,1782760239000,-600.0,0.0001373,2]
[426717790,1782760239000,-2159.99827316,0.00014209,2]
[426717788,1782760239000,-150.0,0.00014087,2]
[426717806,1782760239000,-2699.22182193,0.0001434,2]
[426717796,1782760239000,-150.0,0.00014237,2]
[426717814,1782760239000,-181.65,0.00014572,2]
[426717816,1782760239000,-2699.22182193,0.0001462,2]
[426717802,1782760239000,-150.0,0.00014237,2]
[426717798,1782760239000,-150.0,0.00014237,2]
[426717808,1782760239000,-150.0,0.00014387,2]
[426717792,1782760239000,-255996.2252814,0.0001421,2]
[426717800,1782760239000,-150.0,0.00014237,2]
[426717810,1782760239000,-2159.99827316,0.00014555,2]
[426717804,1782760239000,-150.0,0.00014237,2]
[426717794,1782760239000,-150.0,0.00014237,2]
[426717812,1782760239000,-166.05,0.00014564,2]
[426717820,1782760239000,-150.0,0.00014687,2]
[426717824,1782760239000,-500.0,0.00014862,2]
[426717825,1782760239000,-500.0,0.00014862,2]
[426717826,1782760239000,-837.65,0.00014862,2]
[426717881,1782760239000,-500.0,0.00014999,2]
[426717879,1782760239000,-500.0,0.00014999,2]
[426717887,1782760239000,-500.0,0.00014999,2]
[426717959,1782760239000,-837.65,0.00014999,2]
[426717951,1782760239000,-837.65,0.00014999,2]
[426717963,1782760239000,-837.65,0.00014999,2]
[426717961,1782760239000,-837.65,0.00014999,2]
[426717955,1782760239000,-837.65,0.00014999,2]
[426717957,1782760239000,-837.65,0.00014999,2]
[426717953,1782760239000,-837.65,0.00014999,2]
[426717967,1782760239000,-718.64,0.00014999,2]
[426717965,1782760239000,-837.73014865,0.00014999,2]
[426717971,1782760239000,-718.64,0.00014999,2]
[426717969,1782760239000,-718.64,0.00014999,2]
[426717973,1782760239000,-718.64,0.00014999,2]
[426717985,1782760239000,-718.64,0.00014999,2]
[426717947,1782760239000,-837.65,0.00014999,2]
[426717983,1782760239000,-718.64,0.00014999,2]
[426717977,1782760239000,-718.64,0.00014999,2]
[426717975,1782760239000,-718.64,0.00014999,2]
[426717981,1782760239000,-718.64,0.00014999,2]
[426717987,1782760239000,-718.64,0.00014999,2]
[426717989,1782760239000,-718.64,0.00014999,2]
[426717991,1782760239000,-718.64,0.00014999,2]
[426718004,1782760239000,-718.64,0.00014999,2]
[426717995,1782760239000,-718.64,0.00014999,2]
[426717993,1782760239000,-718.64,0.00014999,2]
[426718010,1782760239000,-8796963.0190661,0.00015,2]
[426718008,1782760239000,-718.74400881,0.00014999,2]
[426717885,1782760239000,-500.0,0.00014999,2]
[426718006,1782760239000,-718.64,0.00014999,2]
[426717979,1782760239000,-718.64,0.00014999,2]
[426717945,1782760239000,-837.65,0.00014999,2]
[426717997,1782760239000,-718.64,0.00014999,2]
[426717943,1782760239000,-837.65,0.00014999,2]
[426717907,1782760239000,-500.0,0.00014999,2]
[426717903,1782760239000,-500.0,0.00014999,2]
[426717899,1782760239000,-463.00138276,0.00014999,2]
[426717905,1782760239000,-500.0,0.00014999,2]
[426717889,1782760239000,-500.0,0.00014999,2]
[426717901,1782760239000,-500.0,0.00014999,2]
[426717909,1782760239000,-500.0,0.00014999,2]
[426717939,1782760239000,-837.65,0.00014999,2]
[426717895,1782760239000,-500.0,0.00014999,2]
[426717893,1782760239000,-500.0,0.00014999,2]
[426717911,1782760239000,-500.0,0.00014999,2]
[426717891,1782760239000,-500.0,0.00014999,2]
[426717915,1782760239000,-500.0,0.00014999,2]
[426717897,1782760239000,-500.0,0.00014999,2]
[426717918,1782760239000,-500.0,0.00014999,2]
[426717941,1782760239000,-837.65,0.00014999,2]
[426717913,1782760239000,-500.0,0.00014999,2]
[426717949,1782760239000,-837.65,0.00014999,2]
[426717929,1782760239000,-612.48851564,0.00014999,2]
[426717925,1782760239000,-500.0,0.00014999,2]
[426717937,1782760239000,-837.65,0.00014999,2]
[426717931,1782760239000,-837.65,0.00014999,2]
[426717927,1782760239000,-500.0,0.00014999,2]
[426717920,1782760239000,-500.0,0.00014999,2]
[426717922,1782760239000,-500.0,0.00014999,2]
[426717924,1782760239000,-500.0,0.00014999,2]
[426717933,1782760239000,-837.65,0.00014999,2]
[426717935,1782760239000,-837.65,0.00014999,2]
[426718096,1782760240000,-500.0,0.00015,2]
[426718098,1782760240000,-500.0,0.00015,2]
[426718094,1782760240000,-500.0,0.00015,2]
[426718090,1782760240000,-500.0,0.00015,2]
[426718087,1782760240000,-500.0,0.00015,2]
[426718075,1782760240000,-500.0,0.00015,2]
[426718092,1782760240000,-500.0,0.00015,2]
[426718083,1782760240000,-500.0,0.00015,2]
[426718081,1782760240000,-500.0,0.00015,2]
[426718079,1782760240000,-500.0,0.00015,2]
[426718085,1782760240000,-500.0,0.00015,2]
[426718100,1782760240000,-500.0,0.00015,2]
[426718115,1782760240000,-500.0,0.00015,2]
[426718104,1782760240000,-500.0,0.00015,2]
[426718107,1782760240000,-500.0,0.00015,2]
[426718111,1782760240000,-500.0,0.00015,2]
[426718113,1782760240000,-500.0,0.00015,2]
[426718121,1782760240000,-500.0,0.00015,2]
[426718117,1782760240000,-500.0,0.00015,2]
[426718125,1782760240000,-500.0,0.00015,2]
[426718109,1782760240000,-500.0,0.00015,2]
[426718123,1782760240000,-500.0,0.00015,2]
[426718127,1782760240000,-500.0,0.00015,2]
[426718119,1782760240000,-500.0,0.00015,2]
[426718068,1782760240000,-500.0,0.00015,2]
[426718129,1782760240000,-500.0,0.00015,2]
[426718102,1782760240000,-500.0,0.00015,2]
[426718072,1782760240000,-500.0,0.00015,2]
[426718040,1782760240000,-500.0,0.00015,2]
[426718070,1782760240000,-500.0,0.00015,2]
[426718131,1782760240000,-500.0,0.00015,2]
[426718019,1782760240000,-500.0,0.00015,2]
[426718015,1782760240000,-151.301244,0.00015,2]
[426718017,1782760240000,-726.27,0.00015,2]
[426718012,1782760240000,-1828257.11434494,0.00015,2]
[426718027,1782760240000,-500.0,0.00015,2]
[426718021,1782760240000,-500.0,0.00015,2]
[426718023,1782760240000,-500.0,0.00015,2]
[426718030,1782760240000,-500.0,0.00015,2]
[426718025,1782760240000,-500.0,0.00015,2]
[426718032,1782760240000,-500.0,0.00015,2]
[426718033,1782760240000,-500.0,0.00015,2]
[426718034,1782760240000,-500.0,0.00015,2]
[426718042,1782760240000,-500.0,0.00015,2]
[426718053,1782760240000,-500.0,0.00015,2]
[426718044,1782760240000,-500.0,0.00015,2]
[426718055,1782760240000,-500.0,0.00015,2]
[426718046,1782760240000,-500.0,0.00015,2]
[426718036,1782760240000,-500.0,0.00015,2]
[426718037,1782760240000,-500.0,0.00015,2]
[426718051,1782760240000,-500.0,0.00015,2]
[426718049,1782760240000,-500.0,0.00015,2]
[426718057,1782760240000,-500.0,0.00015,2]
[426718062,1782760240000,-500.0,0.00015,2]
[426718060,1782760240000,-500.0,0.00015,2]
[426718064,1782760240000,-500.0,0.00015,2]
[426718066,1782760240000,-500.0,0.00015,2]
[426718077,1782760240000,-500.0,0.00015,2]
[426718133,1782760240000,-500.0,0.00015,2]
[426718249,1782760240000,-500.0,0.0001588,2]
[426718136,1782760240000,-500.0,0.00015,2]
[426718188,1782760240000,-500.0,0.00015,2]
[426718205,1782760240000,-154.960337,0.00015068,2]
[426718190,1782760240000,-500.0,0.00015,2]
[426718207,1782760240000,-154.960337,0.00015068,2]
[426718209,1782760240000,-154.960337,0.00015068,2]
[426718211,1782760240000,-154.960337,0.00015068,2]
[426718221,1782760240000,-500.0,0.00015307,2]
[426718219,1782760240000,-343.1176374,0.00015307,2]
[426718213,1782760240000,-500.0,0.00015307,2]
[426718215,1782760240000,-500.0,0.00015307,2]
[426718217,1782760240000,-500.0,0.00015307,2]
[426718224,1782760240000,-500.0,0.00015307,2]
[426718192,1782760240000,-628.352876,0.00015,2]
[426718228,1782760240000,-621.15565481,0.00015307,2]
[426718234,1782760240000,-500.0,0.0001588,2]
[426718232,1782760240000,-150.0,0.0001588,2]
[426718236,1782760240000,-500.0,0.0001588,2]
[426718244,1782760240000,-500.0,0.0001588,2]
[426718238,1782760240000,-500.0,0.0001588,2]
[426718240,1782760240000,-500.0,0.0001588,2]
[426718242,1782760240000,-238.08670734,0.0001588,2]
[426718255,1782760240000,-500.0,0.0001588,2]
[426718247,1782760240000,-188.72095468,0.0001588,2]
[426718253,1782760240000,-500.0,0.0001588,2]
[426718251,1782760240000,-500.0,0.0001588,2]
[426718146,1782760240000,-500.0,0.00015,2]
[426718230,1782760240000,-150.0,0.0001588,2]
[426718186,1782760240000,-500.0,0.00015,2]
[426718226,1782760240000,-500.0,0.00015307,2]
[426718199,1782760240000,-1443.491756,0.00015,2]
[426718149,1782760240000,-500.0,0.00015,2]
[426718203,1782760240000,-540.31,0.00015068,2]
[426718148,1782760240000,-500.0,0.00015,2]
[426718138,1782760240000,-500.0,0.00015,2]
[426718152,1782760240000,-500.0,0.00015,2]
[426718153,1782760240000,-500.0,0.00015,2]
[426718140,1782760240000,-500.0,0.00015,2]
[426718142,1782760240000,-500.0,0.00015,2]
[426718143,1782760240000,-500.0,0.00015,2]
[426718156,1782760240000,-500.0,0.00015,2]
[426718160,1782760240000,-500.0,0.00015,2]
[426718162,1782760240000,-500.0,0.00015,2]
[426718158,1782760240000,-500.0,0.00015,2]
[426718177,1782760240000,-500.0,0.00015,2]
[426718144,1782760240000,-500.0,0.00015,2]
[426718194,1782760240000,-1443.491756,0.00015,2]
[426718196,1782760240000,-1443.491756,0.00015,2]
[426718173,1782760240000,-500.0,0.00015,2]
[426718201,1782760240000,-1443.491756,0.00015,2]
[426718184,1782760240000,-500.0,0.00015,2]
[426718182,1782760240000,-500.0,0.00015,2]
[426718170,1782760240000,-500.0,0.00015,2]
[426718180,1782760240000,-500.0,0.00015,2]
[426718175,1782760240000,-500.0,0.00015,2]
[426718168,1782760240000,-500.0,0.00015,2]
[426718164,1782760240000,-500.0,0.00015,2]
[426718166,1782760240000,-500.0,0.00015,2]
[426718172,1782760240000,-500.0,0.00015,2]
[426718338,1782760241000,-922.33767072,0.00017227,2]
[426718357,1782760241000,-4394.53083232,0.00018,2]
[426718351,1782760241000,-349.48,0.00017645,2]
[426718353,1782760241000,-636.56018289,0.00017771,2]
[426718319,1782760241000,-440.55280145,0.00016438,2]
[426718315,1782760241000,-500.0,0.00016438,2]
[426718321,1782760241000,-252.18084369,0.00016438,2]
[426718317,1782760241000,-500.0,0.00016438,2]
[426718336,1782760241000,-899.0,0.00016952,2]
[426718334,1782760241000,-958.17,0.00016932,2]
[426718354,1782760241000,-636.56018289,0.00017932,2]
[426718323,1782760241000,-151.0,0.00016438,2]
[426718359,1782760241000,-560.44845858,0.00018,2]
[426718377,1782760241000,-8691.2595,0.00018227,2]
[426718340,1782760241000,-1253.51,0.00017424,2]
[426718344,1782760241000,-166.05,0.00017477,2]
[426718361,1782760241000,-551.06495337,0.00018026,2]
[426718347,1782760241000,-1252.0,0.00017486,2]
[426718363,1782760241000,-551.06495337,0.00018039,2]
[426718349,1782760241000,-181.65,0.00017486,2]
[426718366,1782760241000,-551.06495337,0.00018081,2]
[426718368,1782760241000,-551.06495337,0.00018163,2]
[426718370,1782760241000,-2434.06370584,0.00018227,2]
[426718386,1782760241000,-551.06495337,0.00018314,2]
[426718372,1782760241000,-4293.9768959,0.00018227,2]
[426718381,1782760241000,-10000.0,0.00018282,2]
[426718330,1782760241000,-460.52560562,0.00016889,2]
[426718342,1782760241000,-928.54,0.00017425,2]
[426718331,1782760241000,-1293.52,0.00016931,2]
[426718257,1782760241000,-500.0,0.0001588,2]
[426718328,1782760241000,-355.46614395,0.000165,3]
[426718261,1782760241000,-500.0,0.0001588,2]
[426718259,1782760241000,-500.0,0.0001588,2]
[426718263,1782760241000,-500.0,0.0001588,2]
[426718265,1782760241000,-500.0,0.0001588,2]
[426718267,1782760241000,-500.0,0.0001588,2]
[426718272,1782760241000,-500.0,0.0001588,2]
[426718270,1782760241000,-500.0,0.0001588,2]
[426718286,1782760241000,-500.0,0.0001588,2]
[426718284,1782760241000,-500.0,0.0001588,2]
[426718276,1782760241000,-500.0,0.0001588,2]
[426718278,1782760241000,-500.0,0.0001588,2]
[426718274,1782760241000,-251.43799297,0.0001588,2]
[426718282,1782760241000,-616.0,0.0001588,2]
[426718280,1782760241000,-500.0,0.0001588,2]
[426718288,1782760241000,-509.56126523,0.0001588,2]
[426718294,1782760241000,-736.0,0.00016076,2]
[426718296,1782760241000,-500.0,0.00016162,2]
[426718292,1782760241000,-181.65,0.00016029,2]
[426718290,1782760241000,-166.05,0.00016021,2]
[426718304,1782760241000,-657.87,0.00016438,2]
[426718307,1782760241000,-987.81,0.00016438,2]
[426718298,1782760241000,-613.09,0.00016277,2]
[426718300,1782760241000,-586.29,0.00016438,2]
[426718302,1782760241000,-1333.53,0.00016438,2]
[426718311,1782760241000,-500.0,0.00016438,2]
[426718309,1782760241000,-500.0,0.00016438,2]
[426718313,1782760241000,-500.0,0.00016438,2]
[426718326,1782760241000,-540.31,0.00016438,2]
[426718379,1782760241000,-551.06495337,0.00018264,2]
[426718374,1782760241000,-6423.53263037,0.00018227,2]
[426718384,1782760241000,-551.06495337,0.00018314,2]
[426718450,1782760241000,-369.71814497,0.0002,2]
[426718454,1782760241000,-1124.13289574,0.0002,2]
[426718452,1782760241000,-3007.09826212,0.0002,7]
[426718464,1782760241000,-176.0,0.0002,2]
[426718462,1782760241000,-390.0,0.0002,2]
[426718458,1782760241000,-280.681458,0.0002,2]
[426718456,1782760241000,-384.17225189,0.0002,2]
[426718470,1782760241000,-1929.84,0.0002,2]
[426718468,1782760241000,-931.0,0.0002,2]
[426718474,1782760241000,-241.0,0.0002,2]
[426718476,1782760241000,-2000.0,0.0002,7]
[426718466,1782760241000,-576.0,0.0002,2]
[426718478,1782760241000,-218.91535431,0.000202,2]
[426718480,1782760241000,-9073.12808278,0.000202,2]
[426718485,1782760241000,-1124.13289574,0.000202,2]
[426718472,1782760241000,-353.0,0.0002,2]
[426718482,1782760241000,-369.71814497,0.000202,2]
[426718489,1782760241000,-218.91535431,0.000204,2]
[426718487,1782760241000,-384.17225189,0.000202,2]
[426718491,1782760241000,-9073.12808278,0.000204,2]
[426718495,1782760241000,-1124.13289574,0.000204,2]
[426718493,1782760241000,-369.71814497,0.000204,2]
[426718497,1782760241000,-384.17225189,0.000204,2]
[426718500,1782760241000,-9073.12808278,0.000206,2]
[426718502,1782760241000,-1124.13289574,0.000206,2]
[426718506,1782760241000,-151.0,0.00020666,2]
[426718388,1782760241000,-551.06495337,0.00018345,2]
[426718460,1782760241000,-241.0,0.0002,2]
[426718440,1782760241000,-901.0,0.0002,2]